[Event "Czech Extraliga 2023-24"]
[Site "Czech Republic"]
[Date "2024.04.07"]
[Round "11.7"]
[White "Konopka, Michal"]
[Black "Kusa, Jakub"]
[Result "1/2-1/2"]
[ECO "D37"]
[WhiteElo "2346"]
[BlackElo "2350"]
[Annotator "RC"]
[PlyCount "25"]
[EventDate "2023.10.14"]
[EventCountry "CZE"]
[SourceTitle "playchess.com"]
[Source "ChessBase"]
[SourceQuality "1"]
[TimeControl "40/5400+30:1800+30"]

1. d4 {[%emt 0:00:13]} d5 {[%emt 0:00:18]} 2. Nf3 {[%emt 0:00:41]} e6 {[%emt 0:00:33]} 3. c4 {[%emt 0:03:44]} a6 {[%emt 0:00:37]} 4. cxd5 {[%emt 0:01:14]} exd5 {[%emt 0:00:21]} 5. Nc3 {[%emt 0:00:12]} Nf6 {[%emt 0:00:27]} 6. Bg5 {[%emt 0:00:28]} Be6 {[%emt 0:00:20]} 7. e3 {[%emt 0:00:11]} Nbd7 {[%emt 0:00:28]} 8. Bd3 {[%emt 0:00:53]} Bd6 {[%emt 0:00:19]} 9. O-O {[%emt 0:00:18]} c6 {[%emt 0:00:45]} 10. Bf4 {[%emt 0:04:06]} Qc7 {[%emt 0:00:41]} 11. Qd2 {[%emt 0:00:49]} O-O {[%emt 0:00:35]} 12. h3 {[%emt 0:01:02]} Rfe8 {[%emt 0:00:25]} 13. Bxd6 {[%emt 0:02:26]} 1/2-1/2

[Event "Czech Extraliga 2023-24"]
[Site "Czech Republic"]
[Date "2024.04.07"]
[Round "11.7"]
[White "Studnicka, Tomas"]
[Black "Svanda, Ondrej"]
[Result "0-1"]
[ECO "D02"]
[WhiteElo "2262"]
[BlackElo "2396"]
[Annotator "TA"]
[PlyCount "94"]
[EventDate "2023.10.14"]
[EventCountry "CZE"]
[SourceTitle "playchess.com"]
[Source "ChessBase"]
[SourceQuality "1"]
[TimeControl "40/5400+30:1800+30"]

{[%evp 11,94,0,0,0,0,0,4,0,0,0,20,15,33,-18,-17,-2,-21,-9,51,47,68,17,12,22,18,13,29,28,37,24,37,-158,-160,-160,-164,-148,-143,-189,-191,-186,-174,-187,-186,-217,-225,-438,-448,-475,-505,-559,-527,-530,-510,-699,-664,-593,-516,-766,-752,-871,-794,-746,-760,-1604,-1433,-1691,-1646,-2279,-1745,-1857,-1773,-29969,-29973,-29969,-29971,-29978,-29980,-29979,-29980,-29980,-29981,-29987,-29988,-29987,-29986]} 1. d4 {[%emt 0:00:05]} d5 {[%emt 0:00:04]} 2. Nf3 {[%emt 0:00:05]} Nf6 {[%emt 0:00:04]} 3. Bf4 {[%emt 0:00:06]} e6 {[%emt 0:00:03]} 4. e3 {[%emt 0:00:31]} c5 {[%emt 0:00:19]} 5. c3 {[%emt 0:00:36]} Nc6 {[%emt 0:00:07]} 6. Nbd2 {[%emt 0:00:07]} Nh5 {[%emt 0:01:11]} 7. Bg5 {[%emt 0:02:00]} f6 {[%emt 0:00:39]} 8. Bh4 {[%emt 0:00:06][%cal Of3e5]} g6 {[%emt 0:00:07]} 9. Bd3 {[%emt 0:03:34][%cal Of3e5] The position is equal.} Be7 {[%emt 0:00:24]} 10. O-O {[%emt 0:07:20]} O-O {[%emt 0:00:32]} 11. dxc5 {[%emt 0:07:00]} a5 {[%emt 0:02:48][%cal Oe6e5]} 12. c4 {[%emt 0:27:37]} (12. a3 $14) 12... d4 $1 $11 13. Ne4 {[%emt 0:47:53]} dxe3 {[%emt 0:33:51]} 14. fxe3 {[%emt 0:00:00]} e5 {[%emt 0:00:01]} (14... f5 $11 15. Bxe7 Qxe7) 15. Be2 {[%emt 0:00:00]} Be6 {[%emt 0:12:38] Wards off Qd5} 16. Qxd8 {[%emt 0:00:00]} ({White should try} 16. Qb3 $14) 16... Raxd8 {[%emt 0:03:15]} 17. Rad1 {[%emt 0:00:00]} g5 $1 {[%emt 0:07:22] ...Rxd1 would now be deadly.} 18. Bf2 {[%emt 0:00:00]} g4 {[%emt 0:36:05]} 19. Nfd2 {[%emt 0:03:00]} f5 {[%emt 0:00:30] [#]} 20. Nd6 {[%emt 0:00:00]} b6 {[%emt 0:00:30]} (20... Ng7 21. Nb1) 21. e4 $2 {[%emt 0:01:00]} (21. Nb5 $14 Bxc5 22. Nb3) 21... Nf4 $17 {[%emt 0:00:00] Black converts the advantage convincingly.} 22. Rfe1 {[%emt 0:00:00]} Nxe2+ {[%emt 0:00:00]} 23. Rxe2 {[%emt 0:01:00]} f4 {[%emt 0:01:30]} 24. Nf5 {[%emt 0:00:30]} (24. Ree1 $17) 24... Bxc5 $19 {[%emt 0:00:30]} (24... bxc5 25. Nxe7+ Nxe7 26. Bxc5 $11) 25. Bxc5 {[%emt 0:00:00]} bxc5 {[%emt 0:00:30]} 26. Rc1 {[%emt 0:01:00] [#]} a4 $1 {[%emt 0:00:00][%cal Og8f7] Dodges Nb3} 27. b3 {[%emt 0:00:00]} Rd3 {[%emt 0:00:00]} 28. bxa4 $2 {[%emt 0:00:00]} (28. Nb1 {keeps fighting.}) 28... Bxf5 {[%emt 0:00:00]} 29. exf5 {[%emt 0:01:30]} Nd4 {[%emt 0:02:00] Prevents Nb3} ({Weaker is} 29... Rxf5 30. Nb3 $17) 30. Kf1 {[%emt 0:00:00]} Nxe2 {[%emt 0:00:00]} 31. Kxe2 {[%emt 0:01:00][%mdl 4096] Endgame. KRR-KRN} Re3+ {[%emt 0:01:00]} 32. Kf2 {[%emt 0:00:30]} Ra8 {[%emt 0:00:00]} 33. Nb3 {[%emt 0:00:00]} Rxa4 {[%emt 0:00:00]} 34. Rc2 {[%emt 0:00:00]} Re4 {[%emt 0:00:00]} 35. Nxc5 {[%emt 0:00:00]} Rexc4 {[%emt 0:00:00]} 36. Rxc4 {[%emt 0:00:00]} Rxc4 {[%emt 0:00:00] KR-KN} 37. Nd7 {[%emt 0:00:00]} Rc2+ {[%emt 0:00:00]} 38. Kf1 {[%emt 0:03:00]} h5 {[%emt 0:03:30]} 39. Nxe5 {[%emt 0:00:00]} Kg7 {[%emt 0:00:30]} 40. Nd3 {[%emt 0:00:00]} Rc4 {[%emt 0:00:00]} 41. g3 {[%emt 0:30:16]} fxg3 {[%emt 0:29:57] Black mates.} 42. hxg3 {[%emt 0:01:44]} Kf6 {[%emt 0:00:00]} 43. Nf4 {[%emt 0:00:00]} h4 {[%emt 0:00:00]} 44. Nd5+ {[%emt 0:00:00]} Ke5 {[%emt 0:00:00]} (44... Kxf5 $2 {too greedy.} 45. Ne3+ (45. gxh4 Ke4 $19) 45... Kg6 46. Nxc4 $18) 45. Ne3 {[%emt 0:00:00]} Re4 {[%emt 0:00:00]} 46. Ng2 {[%emt 0:00:00]} h3 {[%emt 0:00:00]} 47. Nh4 {[%emt 0:00:00]} Ra4 {[%emt 0:00:00] Weighted Error Value: White=0.57/Black=0.05 (flawless) .  Mistake:       	White=5     	Black=1      Inaccurate:     	White=1     	---        OK:         	White=7     	Black=11     Best:        	White=1     	Black=5      Strong:       	---       	Black=2} 0-1

[Event "Czech Extraliga 2023-24"]
[Site "Czech Republic"]
[Date "2024.04.07"]
[Round "11.8"]
[White "Hollan, Martin"]
[Black "Rodshtein, Tereza"]
[Result "1-0"]
[ECO "D28"]
[WhiteElo "2345"]
[BlackElo "2184"]
[Annotator "RC"]
[PlyCount "81"]
[EventDate "2023.10.14"]
[EventCountry "CZE"]
[SourceTitle "playchess.com"]
[Source "ChessBase"]
[SourceQuality "1"]
[TimeControl "40/5400+30:1800+30"]

1. d4 {[%emt 0:00:13]} d5 {[%emt 0:00:28]} 2. c4 {[%emt 0:01:29]} dxc4 {[%emt 0:03:46]} 3. Nf3 {[%emt 0:00:09]} Nf6 {[%emt 0:00:34]} 4. e3 {[%emt 0:00:08]} e6 {[%emt 0:00:26]} 5. Bxc4 {[%emt 0:00:10]} c5 {[%emt 0:00:27]} 6. O-O {[%emt 0:00:49]} Nc6 {[%emt 0:01:21]} 7. Qe2 {[%emt 0:00:37]} a6 {[%emt 0:03:36]} 8. Rd1 {[%emt 0:03:24]} b5 {[%emt 0:09:39]} 9. dxc5 {[%emt 0:10:02]} Qc7 {[%emt 0:00:26]} 10. Bd3 {[%emt 0:00:17]} Bxc5 {[%emt 0:05:12]} 11. a4 {[%emt 0:00:10]} b4 {[%emt 0:16:31]} 12. Nbd2 {[%emt 0:03:17]} O-O {[%emt 0:05:17]} 13. Nb3 {[%emt 0:04:49]} Ba7 {[%emt 0:13:32]} 14. Bd2 {[%emt 0:02:03]} e5 {[%emt 0:01:42]} 15. Ng5 {[%emt 0:02:46]} h6 {[%emt 0:18:01]} 16. Ne4 {[%emt 0:01:24]} Nxe4 {[%emt 0:00:22]} 17. Bxe4 {[%emt 0:00:09]} Be6 {[%emt 0:00:05]} 18. Rdc1 {[%emt 0:02:04]} Bxb3 {[%emt 0:01:36]} 19. Bxc6 {[%emt 0:00:18]} Rac8 {[%emt 0:01:51]} 20. Bd5 {[%emt 0:08:56]} Bc2 {[%emt 0:00:21]} 21. Bb3 {[%emt 0:03:18]} Bxb3 {[%emt 0:00:23]} 22. Rxc7 {[%emt 0:00:06]} Rxc7 {[%emt 0:00:04]} 23. Bxb4 {[%emt 0:00:27]} Rfc8 {[%emt 0:03:05]} 24. Bc3 {[%emt 0:01:08]} Rc4 {[%emt 0:04:34]} 25. h3 {[%emt 0:02:08]} Bxa4 {[%emt 0:02:29]} 26. Bxe5 {[%emt 0:03:13]} Bb5 {[%emt 0:00:08]} 27. Qd1 {[%emt 0:02:55]} Bb6 {[%emt 0:03:03]} 28. b3 {[%emt 0:03:27]} R4c6 {[%emt 0:02:46]} 29. Qg4 {[%emt 0:01:19]} g6 {[%emt 0:00:40]} 30. Rd1 {[%emt 0:01:14]} Re8 {[%emt 0:00:42]} 31. Ba1 {[%emt 0:01:28]} Rce6 {[%emt 0:01:19]} 32. Qb4 {[%emt 0:02:21]} Bc7 {[%emt 0:00:34]} 33. Rc1 {[%emt 0:11:40]} Be5 {[%emt 0:00:49]} 34. Bxe5 {[%emt 0:00:20]} Rxe5 {[%emt 0:00:01]} 35. Rc7 {[%emt 0:00:39]} Rd8 {[%emt 0:00:38]} 36. Qc3 {[%emt 0:03:17]} Rf5 {[%emt 0:00:47]} 37. e4 {[%emt 0:01:45]} Rf4 {[%emt 0:00:42]} 38. Rc8 {[%emt 0:00:34]} Rxc8 {[%emt 0:00:33]} 39. Qxc8+ {[%emt 0:00:05]} Kg7 {[%emt 0:00:19]} 40. Qc3+ {[%emt 0:00:24]} Kh7 {[%emt 0:01:02]} 41. f3 {[%emt 0:30:15]} 1-0

[Event "Czech Extraliga 2023-24"]
[Site "Czech Republic"]
[Date "2024.04.07"]
[Round "11.8"]
[White "Vrana, Jan"]
[Black "Havelka, Josef"]
[Result "1-0"]
[ECO "B22"]
[WhiteElo "2338"]
[BlackElo "2380"]
[Annotator "RC"]
[PlyCount "75"]
[EventDate "2023.10.14"]
[EventCountry "CZE"]
[SourceTitle "playchess.com"]
[Source "ChessBase"]
[SourceQuality "1"]
[TimeControl "40/5400+30:1800+30"]

1. e4 {[%emt 0:00:01]} c5 {[%emt 0:00:09]} 2. c3 {[%emt 0:00:04]} Nf6 {[%emt 0:00:10]} 3. e5 {[%emt 0:00:05]} Nd5 {[%emt 0:00:08]} 4. d4 {[%emt 0:00:05]} cxd4 {[%emt 0:00:12]} 5. Nf3 {[%emt 0:00:08]} Nc6 {[%emt 0:00:18]} 6. cxd4 {[%emt 0:00:05]} d6 {[%emt 0:00:11]} 7. Bc4 {[%emt 0:00:05]} Nb6 {[%emt 0:00:15]} 8. Bb5 {[%emt 0:00:04]} Bd7 {[%emt 0:00:30]} 9. Nc3 {[%emt 0:00:06]} dxe5 {[%emt 0:12:16]} 10. d5 {[%emt 0:00:07]} Nb4 {[%emt 0:16:27]} 11. Nxe5 {[%emt 0:01:04]} Bxb5 {[%emt 0:03:39]} 12. Nxb5 {[%emt 0:00:08]} Rc8 {[%emt 0:05:40]} 13. O-O {[%emt 0:00:32]} Qxd5 {[%emt 0:05:43]} 14. Nxa7 {[%emt 0:00:24]} Qxe5 {[%emt 0:07:28]} 15. Nxc8 {[%emt 0:00:38]} Nxc8 {[%emt 0:01:37]} 16. Bf4 {[%emt 0:00:01]} Qb5 {[%emt 0:10:03]} 17. Qb3 {[%emt 0:09:51]} Na7 {[%emt 0:05:27]} 18. Rfd1 {[%emt 0:29:56]} e6 {[%emt 0:10:53]} 19. Be3 {[%emt 0:09:29]} Qa6 {[%emt 0:06:37]} 20. Bxa7 {[%emt 0:04:58]} Qxa7 {[%emt 0:00:04]} 21. a3 {[%emt 0:00:07]} Nd5 {[%emt 0:07:15]} 22. Qb5+ {[%emt 0:18:03]} Ke7 {[%emt 0:00:04]} 23. Rac1 {[%emt 0:00:05]} Qb8 {[%emt 0:03:43]} 24. Rd3 {[%emt 0:08:34]} h5 {[%emt 0:00:32]} 25. Re1 {[%emt 0:03:21]} Kd6 {[%emt 0:01:58]} 26. Qa4 {[%emt 0:05:46]} g5 {[%emt 0:00:52]} 27. Qd4 {[%emt 0:03:38]} Be7 {[%emt 0:00:23]} 28. Qe5+ {[%emt 0:00:38]} Kc6 {[%emt 0:00:20]} 29. Rxd5 {[%emt 0:00:57]} exd5 {[%emt 0:00:32]} 30. Qxe7 {[%emt 0:00:01]} Qf4 {[%emt 0:01:00]} 31. g3 {[%emt 0:00:40]} Qd2 {[%emt 0:00:21]} 32. Qf6+ {[%emt 0:01:08]} Kb5 {[%emt 0:00:30]} 33. Re7 {[%emt 0:00:54]} Rb8 {[%emt 0:00:52]} 34. Qd6 {[%emt 0:03:04]} Rc8 {[%emt 0:00:36]} 35. Rxb7+ {[%emt 0:00:32]} Kc4 {[%emt 0:00:17]} 36. Rb4+ {[%emt 0:00:09]} Kd3 {[%emt 0:00:16]} 37. Qxd5+ {[%emt 0:00:12]} Kc2 {[%emt 0:00:52]} 38. Qf5+ {[%emt 0:00:32]} 1-0

[Event "Czech Extraliga 2023-24"]
[Site "Czech Republic"]
[Date "2024.04.07"]
[Round "11.8"]
[White "Simek, Petr"]
[Black "Malik, Jan"]
[Result "1/2-1/2"]
[ECO "D13"]
[WhiteElo "2298"]
[BlackElo "2260"]
[Annotator "RC"]
[PlyCount "39"]
[EventDate "2023.10.14"]
[EventCountry "CZE"]
[SourceTitle "playchess.com"]
[Source "ChessBase"]
[SourceQuality "1"]
[TimeControl "40/5400+30:1800+30"]

1. d4 {[%emt 0:00:02]} d5 {[%emt 0:00:07]} 2. c4 {[%emt 0:00:05]} c6 {[%emt 0:00:12]} 3. cxd5 {[%emt 0:00:05]} cxd5 {[%emt 0:00:05]} 4. Bf4 {[%emt 0:00:04]} Nc6 {[%emt 0:00:21]} 5. e3 {[%emt 0:00:05]} Nf6 {[%emt 0:00:13]} 6. Nc3 {[%emt 0:00:04]} a6 {[%emt 0:00:09]} 7. Be2 {[%emt 0:00:05]} Bf5 {[%emt 0:02:38]} 8. Nf3 {[%emt 0:00:05]} e6 {[%emt 0:00:13]} 9. Qb3 {[%emt 0:00:06]} Ra7 {[%emt 0:01:52]} 10. O-O {[%emt 0:00:20]} Be7 {[%emt 0:03:16]} 11. Rfc1 {[%emt 0:00:38]} Nd7 {[%emt 0:01:38]} 12. a3 {[%emt 0:07:55]} O-O {[%emt 0:00:53]} 13. Qd1 {[%emt 0:02:23]} Qa8 {[%emt 0:05:35]} 14. Na4 {[%emt 0:05:31]} b5 {[%emt 0:01:53]} 15. Nc5 {[%emt 0:01:24]} Nxc5 {[%emt 0:00:26]} 16. dxc5 {[%emt 0:00:04]} Bg4 {[%emt 0:05:06]} 17. Bg3 {[%emt 0:12:18]} Rd8 {[%emt 0:03:37]} 18. Rc2 {[%emt 0:17:42]} Bf6 {[%emt 0:03:05]} 19. Bd6 {[%emt 0:04:05]} Na5 {[%emt 0:09:15]} 20. Ra2 {[%emt 0:25:27]} 1/2-1/2

[Event "Czech Extraliga 2023-24"]
[Site "Czech Republic"]
[Date "2024.04.07"]
[Round "11.8"]
[White "Obsivac, Josef"]
[Black "Pachmann, Ales"]
[Result "0-1"]
[ECO "E71"]
[WhiteElo "2280"]
[BlackElo "2344"]
[Annotator "RC"]
[PlyCount "94"]
[EventDate "2023.10.14"]
[EventCountry "CZE"]
[SourceTitle "playchess.com"]
[Source "ChessBase"]
[SourceQuality "1"]
[TimeControl "40/5400+30:1800+30"]

1. d4 {[%emt 0:00:04]} Nf6 {[%emt 0:00:06]} 2. c4 {[%emt 0:00:05]} g6 {[%emt 0:00:04]} 3. Nc3 {[%emt 0:00:11]} Bg7 {[%emt 0:00:06]} 4. e4 {[%emt 0:00:17]} O-O {[%emt 0:00:15]} 5. Be3 {[%emt 0:00:36]} d6 {[%emt 0:00:15]} 6. h3 {[%emt 0:00:31]} Nfd7 {[%emt 0:00:27]} 7. g4 {[%emt 0:08:36]} c5 {[%emt 0:03:19]} 8. d5 {[%emt 0:01:31]} Qb6 {[%emt 0:06:21]} 9. Qd2 {[%emt 0:04:26]} Qb4 {[%emt 0:02:06]} 10. Rc1 {[%emt 0:03:19]} f5 {[%emt 0:22:19]} 11. exf5 {[%emt 1:16:24]} gxf5 {[%emt 0:01:38]} 12. f4 {[%emt 0:00:00]} Nf6 {[%emt 0:03:44]} 13. Bd3 {[%emt 0:00:00]} e6 {[%emt 0:09:22]} 14. gxf5 {[%emt 0:00:00]} exd5 {[%emt 0:05:22]} 15. cxd5 {[%emt 0:00:00]} Nbd7 {[%emt 0:02:06]} 16. Nf3 {[%emt 0:00:00]} Nb6 {[%emt 0:05:02]} 17. a3 {[%emt 0:00:00]} Qb3 {[%emt 0:03:24]} 18. Ng5 {[%emt 0:00:00]} Re8 {[%emt 0:03:49]} 19. Ne6 {[%emt 0:00:00]} Nbxd5 {[%emt 0:03:49]} 20. Nd1 {[%emt 0:00:00]} Bxe6 {[%emt 0:01:01]} 21. fxe6 {[%emt 0:00:00]} Nxe3 {[%emt 0:01:09]} 22. Nxe3 {[%emt 0:00:00]} Qxe6 {[%emt 0:00:36]} 23. Kf2 {[%emt 0:00:00]} Ne4+ {[%emt 0:00:38]} 24. Bxe4 {[%emt 0:00:00]} Bd4 {[%emt 0:01:56]} 25. Kg3 {[%emt 0:02:07]} Qxe4 {[%emt 0:00:13]} 26. Ng4 {[%emt 0:01:44]} Kh8 {[%emt 0:07:47]} 27. Rhf1 {[%emt 0:02:24]} Qe2 {[%emt 0:03:25]} 28. Qxe2 {[%emt 0:00:34]} Rxe2 {[%emt 0:00:08]} 29. b4 {[%emt 0:00:37]} h5 {[%emt 0:00:39]} 30. Nh6 {[%emt 0:00:46]} Rf8 {[%emt 0:01:21]} 31. Kh4 {[%emt 0:00:47]} Re3 {[%emt 0:02:45]} 32. bxc5 {[%emt 0:00:34]} dxc5 {[%emt 0:00:37]} 33. Rc2 {[%emt 0:00:52]} Kh7 {[%emt 0:01:02]} 34. Ng4 {[%emt 0:00:30]} hxg4 {[%emt 0:00:19]} 35. hxg4 {[%emt 0:00:01]} Rxa3 {[%emt 0:00:43]} 36. g5 {[%emt 0:00:28]} Re8 {[%emt 0:00:47]} 37. Rh2 {[%emt 0:00:56]} b5 {[%emt 0:01:43]} 38. Kg4+ {[%emt 0:00:32]} Kg8 {[%emt 0:00:16]} 39. f5 {[%emt 0:00:32]} Re4+ {[%emt 0:02:33]} 40. Kh5 {[%emt 0:00:09]} Rg3 {[%emt 0:01:06]} 41. Kg6 {[%emt 0:00:57]} Reg4 {[%emt 0:00:54]} 42. Rh5 {[%emt 0:03:20]} Be3 {[%emt 0:00:17]} 43. Re1 {[%emt 0:01:08]} Rxg5+ {[%emt 0:00:26]} 44. Rxg5 {[%emt 0:00:05]} Rxg5+ {[%emt 0:00:08]} 45. Kf6 {[%emt 0:00:16]} Rg3 {[%emt 0:00:16]} 46. Ke7 {[%emt 0:00:32]} Rg7+ {[%emt 0:01:13]} 47. Ke8 {[%emt 0:00:34]} Bd4 {[%emt 0:01:28]} 0-1

[Event "Czech Extraliga 2023-24"]
[Site "Czech Republic"]
[Date "2024.04.07"]
[Round "11.8"]
[White "Michalek, Jan"]
[Black "Rabatin, Jakub"]
[Result "0-1"]
[ECO "B23"]
[WhiteElo "2247"]
[BlackElo "2293"]
[Annotator "RC"]
[PlyCount "102"]
[EventDate "2023.10.14"]
[EventCountry "CZE"]
[SourceTitle "playchess.com"]
[Source "ChessBase"]
[SourceQuality "1"]
[TimeControl "40/5400+30:1800+30"]

1. e4 {[%emt 0:00:12]} c5 {[%emt 0:00:10]} 2. Nc3 {[%emt 0:00:26]} a6 {[%emt 0:00:12]} 3. g3 {[%emt 0:00:37]} b5 {[%emt 0:00:04]} 4. Bg2 {[%emt 0:00:29]} Bb7 {[%emt 0:00:05]} 5. d3 {[%emt 0:01:16]} e6 {[%emt 0:00:43]} 6. f4 {[%emt 0:01:32]} d5 {[%emt 0:01:25]} 7. Qe2 {[%emt 0:04:55]} Be7 {[%emt 0:22:15]} 8. Nf3 {[%emt 0:01:14]} Nc6 {[%emt 0:03:37]} 9. O-O {[%emt 0:02:35]} Nd4 {[%emt 0:07:14]} 10. Nxd4 {[%emt 0:14:27]} cxd4 {[%emt 0:00:14]} 11. Nd1 {[%emt 0:00:48]} dxe4 {[%emt 0:02:24]} 12. dxe4 {[%emt 0:00:15]} Rc8 {[%emt 0:06:15]} 13. Qd3 {[%emt 0:09:40]} Qb6 {[%emt 0:04:50]} 14. Bd2 {[%emt 0:01:53]} Nf6 {[%emt 0:02:06]} 15. Nf2 {[%emt 0:00:27]} O-O {[%emt 0:02:22]} 16. Rac1 {[%emt 0:00:27]} Rfd8 {[%emt 0:01:59]} 17. Qe2 {[%emt 0:04:28]} Rd7 {[%emt 0:06:29]} 18. Kh1 {[%emt 0:01:03]} b4 {[%emt 0:03:03]} 19. Rfd1 {[%emt 0:05:05]} a5 {[%emt 0:05:32]} 20. Be1 {[%emt 0:03:52]} a4 {[%emt 0:02:53]} 21. Nd3 {[%emt 0:03:00]} Qa6 {[%emt 0:06:32]} 22. Bf3 {[%emt 0:04:14]} Qa8 {[%emt 0:01:46]} 23. Bxb4 {[%emt 0:01:50]} Bxb4 {[%emt 0:01:44]} 24. Nxb4 {[%emt 0:01:12]} Nxe4 {[%emt 0:00:23]} 25. Kg2 {[%emt 0:01:12]} a3 {[%emt 0:00:18]} 26. Qb5 {[%emt 0:04:34]} Nc3 {[%emt 0:05:00]} 27. Qxb7 {[%emt 0:01:36]} Rxb7 {[%emt 0:00:36]} 28. bxc3 {[%emt 0:00:12]} Qb8 {[%emt 0:02:35]} 29. Rxd4 {[%emt 0:00:48]} Rb6 {[%emt 0:01:45]} 30. Rcd1 {[%emt 0:00:26]} g6 {[%emt 0:00:39]} 31. Nc6 {[%emt 0:00:25]} Rbxc6 {[%emt 0:00:37]} 32. Bxc6 {[%emt 0:00:39]} Qb2 {[%emt 0:00:11]} 33. Ba4 {[%emt 0:00:31]} Qxa2 {[%emt 0:02:11]} 34. Rd8+ {[%emt 0:00:29]} Rxd8 {[%emt 0:00:07]} 35. Rxd8+ {[%emt 0:00:06]} Kg7 {[%emt 0:00:02]} 36. Bb3 {[%emt 0:00:20]} Qb2 {[%emt 0:02:24]} 37. Ra8 {[%emt 0:00:10]} Qxc3 {[%emt 0:04:21]} 38. Rxa3 {[%emt 0:02:19]} Qc6+ {[%emt 0:00:08]} 39. Kh3 {[%emt 0:00:20]} Qh1 {[%emt 0:00:52]} 40. Bc4 {[%emt 0:00:35]} g5 {[%emt 0:02:45]} 41. fxg5 {[%emt 0:36:26]} Qc1 {[%emt 0:02:24]} 42. Ra7 {[%emt 0:00:00]} Qxg5 {[%emt 0:00:21]} 43. Bd3 {[%emt 0:00:00]} Qh5+ {[%emt 0:02:37]} 44. Kg2 {[%emt 0:00:00]} Qd5+ {[%emt 0:00:04]} 45. Kh3 {[%emt 0:00:00]} e5 {[%emt 0:03:22]} 46. Re7 {[%emt 0:00:00]} Qd6 {[%emt 0:06:04]} 47. Ra7 {[%emt 0:00:00]} Qh6+ {[%emt 0:04:01]} 48. Kg2 {[%emt 0:00:00]} Qc6+ {[%emt 0:00:13]} 49. Kh3 {[%emt 0:00:00]} e4 {[%emt 0:00:47]} 50. Be2 {[%emt 0:00:00]} Qh6+ {[%emt 0:00:22]} 51. Kg2 {[%emt 0:00:00]} Qe3 {[%emt 0:00:05]} 0-1

[Event "Czech Extraliga 2023-24"]
[Site "Czech Republic"]
[Date "2024.04.07"]
[Round "11.8"]
[White "Gnida, Patrik"]
[Black "Cerveny, Martin"]
[Result "0-1"]
[ECO "E12"]
[WhiteElo "2216"]
[BlackElo "2382"]
[Annotator "RC"]
[PlyCount "104"]
[EventDate "2023.10.14"]
[EventCountry "CZE"]
[SourceTitle "playchess.com"]
[Source "ChessBase"]
[SourceQuality "1"]
[TimeControl "40/5400+30:1800+30"]

1. d4 {[%emt 0:00:02]} Nf6 {[%emt 0:00:28]} 2. Nf3 {[%emt 0:00:02]} e6 {[%emt 0:00:08]} 3. c4 {[%emt 0:01:36]} b6 {[%emt 0:01:03]} 4. a3 {[%emt 0:00:11]} Bb7 {[%emt 0:00:13]} 5. Nc3 {[%emt 0:01:24]} d5 {[%emt 0:01:11]} 6. cxd5 {[%emt 0:00:43]} exd5 {[%emt 0:00:13]} 7. Bg5 {[%emt 0:01:13]} Be7 {[%emt 0:00:29]} 8. e3 {[%emt 0:00:47]} O-O {[%emt 0:04:18]} 9. Bd3 {[%emt 0:00:50]} Ne4 {[%emt 0:00:30]} 10. Bxe7 {[%emt 0:00:15]} Qxe7 {[%emt 0:00:02]} 11. Bxe4 {[%emt 0:00:09]} dxe4 {[%emt 0:00:05]} 12. Nd2 {[%emt 0:01:19]} Nd7 {[%emt 0:04:25]} 13. O-O {[%emt 0:04:57]} c5 {[%emt 0:06:14]} 14. Nb3 {[%emt 0:12:17]} Ba6 {[%emt 0:03:50]} 15. Re1 {[%emt 0:00:07]} Rad8 {[%emt 0:00:21]} 16. Qh5 {[%emt 0:13:24]} f5 {[%emt 0:01:47]} 17. dxc5 {[%emt 0:04:38]} bxc5 {[%emt 0:00:19]} 18. Rad1 {[%emt 0:07:49]} Qe6 {[%emt 0:07:09]} 19. Rd5 {[%emt 0:03:53]} Qb6 {[%emt 0:02:34]} 20. Qd1 {[%emt 0:08:04]} Nf6 {[%emt 0:01:12]} 21. Rd2 {[%emt 0:01:57]} Rxd2 {[%emt 0:09:53]} 22. Nxd2 {[%emt 0:00:07]} Qxb2 {[%emt 0:00:06]} 23. Qb3+ {[%emt 0:00:22]} Qxb3 {[%emt 0:00:05]} 24. Nxb3 {[%emt 0:00:01]} Bc4 {[%emt 0:00:52]} 25. Nxc5 {[%emt 0:11:27]} Rc8 {[%emt 0:00:38]} 26. N3a4 {[%emt 0:00:36]} Bb5 {[%emt 0:01:44]} 27. h3 {[%emt 0:01:14]} Kf7 {[%emt 0:04:08]} 28. Nb7 {[%emt 0:05:08]} Ke7 {[%emt 0:00:16]} 29. Nac5 {[%emt 0:00:10]} Rc6 {[%emt 0:03:00]} 30. Rc1 {[%emt 0:01:22]} Nd7 {[%emt 0:06:26]} 31. Nb3 {[%emt 0:01:25]} Rxc1+ {[%emt 0:01:26]} 32. Nxc1 {[%emt 0:00:01]} Ba6 {[%emt 0:01:56]} 33. Na5 {[%emt 0:00:13]} Kd6 {[%emt 0:00:06]} 34. Ncb3 {[%emt 0:00:38]} Ne5 {[%emt 0:01:21]} 35. Kh2 {[%emt 0:02:46]} Kd5 {[%emt 0:04:47]} 36. Kg3 {[%emt 0:01:34]} g5 {[%emt 0:01:51]} 37. h4 {[%emt 0:01:00]} h6 {[%emt 0:00:36]} 38. Nd4 {[%emt 0:01:43]} f4+ {[%emt 0:00:37]} 39. Kh2 {[%emt 0:01:22]} Ng4+ {[%emt 0:00:48]} 40. Kg1 {[%emt 0:00:18]} fxe3 {[%emt 0:00:28]} 41. fxe3 {[%emt 0:30:06]} Nxe3 {[%emt 0:30:06]} 42. hxg5 {[%emt 0:00:17]} hxg5 {[%emt 0:00:05]} 43. Ndc6 {[%emt 0:00:20]} Bd3 {[%emt 0:02:01]} 44. Nxa7 {[%emt 0:05:50]} Nc2 {[%emt 0:05:51]} 45. N7c6 {[%emt 0:01:50]} e3 {[%emt 0:01:01]} 46. Nb4+ {[%emt 0:00:48]} Nxb4 {[%emt 0:00:06]} 47. axb4 {[%emt 0:00:01]} g4 {[%emt 0:00:28]} 48. g3 {[%emt 0:05:59]} Kd4 {[%emt 0:01:55]} 49. Nb3+ {[%emt 0:00:00]} Kc3 {[%emt 0:00:00]} 50. Nc5 {[%emt 0:00:00]} Bc2 {[%emt 0:00:00]} 51. Ne6 {[%emt 0:00:00]} e2 {[%emt 0:00:00]} 52. Kf2 {[%emt 0:00:00]} Kd2 {[%emt 0:00:00]} 0-1